Workbook

Sheet 01.04.2021 СВОД
E1: Приложение №2
E2: к постановлению администрации ЗАТО г. Радужный Владимирской области
E3: от 16.04.2021г. № 468
A4: Сведения о фактической численности муниципальных служащих, работников казенных и бюджетных учреждений и расходы на их денежное содержание по состоянию на 01 апреля 2021 года
A6: №п/п | B6: Код раздела (подраздела) | C6: Наименование раздела (подраздела) расходов | D6: Фактическая численность на 01.04.2021 (чел.) | E6: Годовой фонд оплаты труда с начислениями (тыс.руб.) | F6: Исполнено за отчетный период (тыс.руб.)
A7: 1 | B7: 2 | C7: 3 | D7: 4 | E7: 5 | F7: 6
A8: 1 | B8: 0100 | C8: Общегосударственные вопросы | D8: =D10+D11+D12+D13+D14 -> 206.5 | E8: =E10+E11+E12+E13+E14 -> 72607.23 | F8: =F10+F11+F12+F13+F14 -> 13618.36
C9: в том числе:
A10: 1.1 | B10: 0102 | C10: Функционирование высшего должностного лица субъекта Российской Федерации и муниципального образования | D10: 1 | E10: 1954.97 | F10: 362.26
A11: 1.2 | B11: 0103 | C11: Функционирование законодательных (представительных) органов государственной власти и представительных органов муниципальных образований | D11: 2 | E11: 2039.82 | F11: 361.31
A12: 1.3 | B12: 0104 | C12: Функционирование Правительства Российской Федерации, высших исполнительных органов государственной власти субъектов Российской Федерации, местных администраций | D12: 13 | E12: 8923.83 | F12: 1677.94
A13: 1.4 | B13: 0106 | C13: Обеспечение деятельности финансовых, налоговых и таможенных органов и органов финансового (финансово-бюджетного) надзора | D13: 10 | E13: 5298.53 | F13: 946.54
A14: 1.5 | B14: 0113 | C14: Другие общегосударственные вопросы | D14: =14.5+150+14+2 -> 180.5 | E14: 54390.08 | F14: 10270.31
A15: 2 | B15: 0300 | C15: Национальная безопасность и правоохранительная деятельность, всего, в том числе | D15: =D17 -> 5 | E15: =E17 -> 2393.6 | F15: =F17 -> 430.16
C16: в том числе:
A17: 2.1 | B17: 0309 | C17: Защита населения и территории от чрезвычайных ситуаций природного и техногенного характера, гражданская оборона | D17: 5 | E17: 2393.6 | F17: 430.16
A18: 3. | B18: 0400 | C18: Национальная экономика | D18: =D21 -> 37 | E18: =E20+E21 -> 17062.2 | F18: =F21 -> 2993.96
C19: в том числе:
A20: 3.1 | B20: 0401 | C20: Общеэкономические вопросы | D20: * | E20: =149.9+230+542.93 -> 922.83 | F20: 0
A21: 3.2 | B21: 0409 | C21: Дорожное хозяйство (дорожные фонды) | D21: 37 | E21: 16139.37 | F21: 2993.96
A22: 4. | B22: 0500 | C22: Жилищно-коммунальное хозяйство | D22: =D24+D25 -> 59 | E22: =E24+E25 -> 24309.84 | F22: 4398.46
C23: в том числе:
A24: 4.1 | B24: 0503 | C24: Благоустройство | D24: 5 | E24: 2287.57 | F24: 352.76
A25: 4.2 | B25: 0505 | C25: Другие вопросы в области жилищно-коммунального хозяйства | D25: 54 | E25: 22022.27 | F25: 4045.7
A26: 5 | B26: 0700 | C26: Образование | D26: =D28+D29+D30+D31 -> 490 | E26: =E28+E29+E30+E31 -> 223643.95 | F26: =F28+F29+F30+F31 -> 68747.46
C27: в том числе:
A28: 5.1 | B28: 0701 | C28: Дошкольное образование | D28: 200 | E28: 85663.71 | F28: 26485.45
A29: 5.2 | B29: 0702 | C29: Общее образование | D29: 179 | E29: =93583.34-121 -> 93462.34 | F29: 31029
A30: 5.3 | B30: 0703 | C30: Дополнительное образование детей | D30: =53+33 -> 86 | E30: =18665.15+16082.71-109-542.93 -> 34095.93 | F30: =4915.76+4394.78 -> 9310.54
A31: 5.4. | B31: 0709 | C31: Другие вопросы в области образования | D31: 25 | E31: 10421.97 | F31: 1922.47
A32: 6. | B32: 0800 | C32: Культура, кинематография | D32: =D34+D35 -> 95 | E32: =E34+E35 -> 33513.32 | F32: =F34+F35 -> 8323.89
C33: в том числе:
A34: 6.1 | B34: 0801 | C34: Культура | D34: 55 | E34: 21523.6 | F34: 6047.48
A35: 6.2 | B35: 0804 | C35: Другие вопросы в области культуры, кинематографии | D35: 40 | E35: 11989.72 | F35: 2276.41
A36: 7. | B36: 1000 | C36: Социальная политика | D36: =D38 -> 2 | E36: =E38 -> 1030.43 | F36: =F38 -> 210.87
C37: в том числе:
A38: 7.1 | B38: 1006 | C38: Другие вопросы в области социальной политики | D38: 2 | E38: 1030.43 | F38: 210.87
A39: 8. | B39: 1100 | C39: Физическая культура и спорт | D39: =D41 -> 3 | E39: =E41 -> 752.59 | F39: =F41 -> 143.47
C40: в том числе:
A41: 8.1 | B41: 1103 | C41: Спорт высших достижений | D41: 3 | E41: 752.59 | F41: 143.47
C42: Всего: | D42: =D8+D15+D18+D22+D26+D32+D36+D39 -> 897.5 | E42: =E8+E15+E18+E22+E26+E32+E36+E39 -> 375313.16 | F42: =F8+F15+F18+F22+F26+F32+F36+F39 -> 98866.63
B43: * Временная занятость детей и молодежи в летний период.
A45: Заместитель главы администрации города по финансам и экономике, начальник финансового управления | E45: О.М. Горшкова
A48: В.Н. Милованова, 3-67-17
